Cogmind - Beta 10.2 @@@ ROGUE MODE // 2021.05.16 @ 02:38:54 Player: thingamajigger Result: Escaped! Performance ------------- Evolutions (9) 4500 Regions Visited (24) 4800 Robots Destroyed (219) 1095 Value Destroyed (17772) 17772 Prototype IDs (45) 900 Alien Tech Used (0) 0 Bonus (16145) 16145 TOTAL SCORE: 45212 Bonus ------- High Alert Combat Kills 1646 Follower Combat Kills 5838 Entered Garrisons 1800 Used RIF Installer 4500 Aligned with FarCom 300 Win 3000 Friendly Fire -939 Cogmind --------- Core Integrity 1129/1600 Matter 280/300 Energy 813/825 System Corruption 6% Temperature Cool (20) Movement Treading (210) Ox1 Location To Epsilon Eridani Parts ------- > --- POWER (1) -------- Reinforced Antimatter Reactor > --- PROPULSION (4) --- Improved Heavy Siege Treads Improved Heavy Siege Treads > --- UTILITY (16) ----- High-capacity Storage Unit High-capacity Storage Unit High-capacity Storage Unit High-capacity Storage Unit Energy Well Advanced Targeting Computer Advanced Target Analyzer Advanced Core Analyzer Improved Particle Charger Advanced Phase Shifter Improved Power Shielding Heavy Armor Plating Relay Coupler [NC] (24) Relay Coupler [NC] (52) Relay Coupler [Sentry] (11) > --- WEAPON (4) ------- Gamma Rifle Quantum Rifle Railgun Linear Accelerator > --- INVENTORY (36) --- Reinforced Antimatter Reactor Advanced Heavy Treads Advanced Heavy Treads Biometal Heavy Treads Matter Compressor (250) Improved Power Shielding Improved Remote Force Field Improved System Shield Relay Coupler [Swarmer] (67) Relay Coupler [Grunt] (51) Relay Coupler [Sentry] (26) Relay Coupler [Sentry] (26) Relay Coupler [Sentry] (32) Relay Coupler [Sentry] (31) Relay Coupler [Sentry] (24) Relay Coupler [Demolisher] (23) Relay Coupler [Specialist] (26) Relay Coupler [Specialist] (23) Relay Coupler [Specialist] (32) Relay Coupler [Behemoth] (12) System Backup Module Drone Bay (2/2) KE Penetrator KE Penetrator KE Penetrator KE Penetrator Hypervelocity Coil Gun Improved Proton Missile Launcher Missile Launcher Advanced Remote Datajack Advanced Remote Datajack Powered Hammer Peak State ------------ > --- POWER ------------ Cold Fusion Reactor > --- PROPULSION ------- Experimental Biometal Heavy Treads Experimental Biometal Heavy Treads > --- UTILITY ---------- High-capacity Storage Unit High-capacity Storage Unit High-capacity Storage Unit High-capacity Storage Unit High-capacity Storage Unit Energy Well Advanced Targeting Computer Advanced Target Analyzer Improved Remote Force Field Relay Coupler [Swarmer] Relay Coupler [Grunt] Relay Coupler [Duelist] Relay Coupler [Sentry] Relay Coupler [Hunter] Relay Coupler [Hunter] Relay Coupler [Behemoth] > --- WEAPON ----------- Hypervelocity Coil Gun Heavy Hardcell Cannon Advanced Remote Datajack > --- INVENTORY -------- Reinforced Antimatter Reactor Reinforced Antimatter Reactor Armored Heavy Treads Armored Heavy Treads Matter Compressor Matter Compressor Improved Power Shielding Improved Power Shielding Improved Remote Force Field Relay Coupler [NC] Relay Coupler [Grunt] Relay Coupler [Grunt] Relay Coupler [Sentry] Relay Coupler [Sentry] Relay Coupler [Sentry] Relay Coupler [Demolisher] Relay Coupler [Specialist] Relay Coupler [Specialist] Relay Coupler [Specialist] Relay Coupler [Behemoth] Improved Dynamic Insulation System System Backup Module Drone Bay Quantum Rifle Hypervelocity Coil Gun Hypervelocity Coil Gun Hypervelocity Coil Gun Hypervelocity Coil Gun Hypervelocity Coil Gun Linear Accelerator Improved Proton Missile Launcher Enhanced Gamma Bomb Array Missile Launcher Improved Remote Datajack Advanced Remote Datajack Advanced Remote Datajack Advanced Remote Datajack Powered Hammer [Rating: 157] Favorites ----------- Power Cold Fusion Reactor Engine Improved Deuterium Engine Power Core Light Nuclear Core Reactor Cold Fusion Reactor Propulsion Armored Medium Treads Treads Armored Medium Treads Leg Flexi-carbon Leg Utility High-capacity Storage Unit Device Improved Remote Force Field Storage High-capacity Storage Unit Processor Advanced Target Analyzer Hackware Relay Coupler [Grunt] Protection Layered Light Armor Plating Weapon Hypervelocity Coil Gun Energy Gun AWS/Thermal Ballistic Gun Hypervelocity Coil Gun Ballistic Cannon Linear Accelerator Launcher Improved Proton Missile Launcher Special Weapon Advanced Remote Datajack Impact Weapon Heavy Mace Build | -11 -10 -10 -10 -9 -8 -7 -7 -7 -7 -6 -6 -6 -6 -5 -5 -4 -4 -3 -3 -2 -2 -1 -1 -1 ------- Run | Scr Mat Min Exi Min Mat Fac Gar Fac Gar Fac Gar Fac Gar Fac Gar Fac Gar Res Gar Res Gar Acc Gar Acc Slots Evolved 18 | . . . . . 4 2 . . . 2 . . . 2 . 2 . 2 . 2 . 2 . . Power . | . . . . . . . . . . . . . . . . . . . . . . . . . Propulsion 2 | . . . . . 1 1 . . . . . . . . . . . . . . . . . . Utility 14 | . . . . . 2 1 . . . 1 . . . 2 . 2 . 2 . 2 . 2 . . Weapon 2 | . . . . . 1 . . . . 1 . . . . . . . . . . . . . . Parts Attached 358 | 6 6 3 1 2 16 2 17 20 38 16 18 1 25 15 15 1 18 5 21 20 15 17 35 25 Power 13 | 1 1 1 . 1 2 . . 1 2 1 . . 1 . . . . . . 1 . . 1 . Engine 7 | 1 1 1 . 1 1 . . 1 1 . . . . . . . . . . . . . . . Core 2 | . . . . . 1 . . . 1 . . . . . . . . . . . . . . . Reactor 4 | . . . . . . . . . . 1 . . 1 . . . . . . 1 . . 1 . Propulsion 39 | 2 1 . . . 4 1 4 2 8 4 . . 2 4 . . 1 . 1 1 . 2 . 2 Treads 25 | 2 1 . . . 3 1 4 2 2 . . . . 3 . . 1 . 1 1 . 2 . 2 Leg 14 | . . . . . 1 . . . 6 4 . . 2 1 . . . . . . . . . . Wheel . | . . . . . . . . . . . . . . . . . . . . . . . . . Hover . | . . . . . . . . . . . . . . . . . . . . . . . . . Flight . | . . . . . . . . . . . . . . . . . . . . . . . . . Utility 177 | 1 3 . 1 . 6 . 5 4 9 5 13 1 12 6 15 . 7 5 14 15 8 12 20 15 Device 31 | . . . . . . . . . 1 . 1 . 1 1 5 . 1 1 2 4 1 4 6 3 Storage 24 | 1 3 . 1 . 2 . 4 1 1 1 1 . 1 1 2 . . 1 1 . 1 1 . 1 Processor 5 | . . . . . . . . . . 1 . . . . . . . . . 2 . . 1 1 Hackware 86 | . . . . . 1 . . 2 3 1 7 1 9 3 6 . 6 3 10 4 6 6 11 7 Protection 31 | . . . . . 3 . 1 1 4 2 4 . 1 1 2 . . . 1 5 . 1 2 3 Artifact . | . . . . . . . . . . . . . . . . . . . . . . . . . Weapon 129 | 2 1 2 . 1 4 1 8 13 19 6 5 . 10 5 . 1 10 . 6 3 7 3 14 8 Energy Gun 18 | 1 . 1 . 1 1 . 1 4 5 1 . . 1 . . . . . . . . . . 2 Energy Cannon . | . . . . . . . . . . . . . . . . . . . . . . . . . Ballistic Gun 61 | 1 1 . . . 2 . 3 4 8 3 4 . 4 4 . . 6 . 4 1 3 1 7 5 Ballistic Cannon 9 | . . . . . 1 1 2 . . 1 . . . . . . . . . 1 . . 2 1 Launcher 15 | . . . . . . . 2 1 4 . 1 . 1 . . . 1 . 1 . . 2 2 . Special Weapon 16 | . . 1 . . . . . 3 1 1 . . 1 1 . . 1 . 1 1 2 . 3 . Impact Weapon 10 | . . . . . . . . 1 1 . . . 3 . . 1 2 . . . 2 . . . Slashing Weapon . | . . . . . . . . . . . . . . . . . . . . . . . . . Piercing Weapon . | . . . . . . . . . . . . . . . . . . . . . . . . . Special Melee Weapon . | . . . . . . . . . . . . . . . . . . . . . . . . . Unidentified Prototypes 5 | . . . . . 1 . . . . 1 . . . . . . . . . 1 . 1 . 1 Parts Lost 64 | . 3 1 . 3 . . 4 3 19 2 1 . 3 1 . . 2 . 2 . 1 1 8 10 Power 5 | . 1 1 . 1 . . . . 2 . . . . . . . . . . . . . . . Propulsion 18 | . 1 . . 1 . . 1 3 7 1 . . 2 . . . . . . . . . . 2 Utility 16 | . . . . . . . 1 . 2 . 1 . . . . . 1 . . . 1 1 4 5 Weapon 25 | . 1 . . 1 . . 2 . 8 1 . . 1 1 . . 1 . 2 . . . 4 3 Highest Loss Streak 8 | . 2 1 . 3 . . 2 1 8 1 1 . 1 1 . . 1 . 1 . 1 1 2 5 Average Slot Usage (%) 90 | . 98 98 72 59 79 84 98 96 78 87 98 100 96 100 99 89 91 93 93 93 84 84 86 89 Engine 1 | . 13 14 14 14 6 7 7 7 5 . . . . . . . . . . . . . . . Reactor 3 | . . . . . . . . . . 1 6 6 5 5 5 5 5 4 4 4 4 4 4 4 Treads 10 | . 27 28 28 16 24 30 29 26 2 4 . . . 4 17 15 15 14 14 12 8 8 8 7 Leg 6 | . . . . . . . . . 18 13 26 26 24 18 5 5 1 . . . . . . . Device 2 | . . . . . . . . . 1 . . . . 5 4 5 4 5 2 3 1 3 5 3 Storage 25 | . 27 28 15 14 16 15 29 30 28 26 27 26 25 29 26 26 26 27 24 26 21 22 24 23 Processor 3 | . . . . . . . . . . 2 . . . . . . . . . 8 8 8 8 11 Hackware 12 | . . . . . 2 . . . 1 . 3 4 11 10 12 5 11 21 22 18 25 27 18 21 Protection 3 | . . . . . 8 7 7 6 3 8 5 8 . . 1 5 4 . 3 2 . . 3 2 Energy Gun 1 | . 2 6 . 11 8 7 1 4 3 2 1 . . . . . . . . . . . . . Ballistic Gun 10 | . 25 19 . . . 7 12 14 5 10 11 13 11 14 17 12 14 14 13 12 4 2 7 9 Ballistic Cannon 1 | . . . . . 8 7 6 2 . 2 . . . . . . . . . . 4 4 3 2 Launcher 1 | . . . . . . . . . 1 . 5 6 4 1 . . . . . . . 1 . . Special Weapon 3 | . . 1 14 2 . . . . . . 6 6 4 2 5 5 4 4 3 3 3 4 3 3 Naked Turns . | . . . . . . . . . . . . . . . . . . . . . . . . . Heaviest Build 250 | 13 71 71 84 93 138 138 161 162 156 167 170 170 167 180 175 171 177 211 218 225 226 226 250 250 Greatest Support 170 | 40 40 40 40 40 67 90 90 89 46 76 76 76 76 81 81 81 124 124 129 135 135 170 170 170 Greatest Overweight (x) 76 | . 1 1 2 4 6 1 1 3 51 7 54 2 4 6 2 2 3 1 1 1 1 1 76 1 Average Overweight (x) 1 | . . 1 1 3 2 1 . 1 4 4 4 2 2 2 1 2 1 1 1 1 1 1 1 1 Largest Inventory Capacity 52 | 6 20 20 24 24 32 32 40 36 36 36 36 36 36 36 36 36 36 44 44 44 44 44 44 52 Average Capacity 37 | 5 16 20 23 24 30 32 34 35 34 36 36 36 35 36 36 36 36 43 44 44 44 44 44 43 Most Carried 44 | 1 20 20 24 24 32 31 36 36 36 36 36 36 36 36 36 36 36 44 44 44 44 44 44 44 Average Carried 36 | . 11 19 21 21 27 31 32 34 33 35 34 35 32 34 35 36 34 39 42 42 43 41 40 42 Final Capacity 44 | 6 20 20 24 24 32 32 36 36 36 36 36 36 36 36 36 36 36 44 44 44 44 44 44 36 Final Carried 44 | 1 19 19 24 21 32 31 36 36 36 36 36 36 36 36 36 36 36 44 44 44 44 41 43 35 Class Distribution -------------------- 50% | Botlord-Mutant 15% | Bothacker-Mutant 6% | Bothacker-Skirmisher 6% | Botlord-Gunner 6% | Hauler-Mutant 5% | Hauler-Skirmisher 4% | Botlord-Tank Dominant Class ---------------- Mutant | -10/Materials Hauler-Mutant | -10/Mines Hauler-Mutant | -10/Exiles Hauler-Mutant | -9/Mines Hauler-Skirmisher | -8/Materials Hauler-Skirmisher | -7/Factory Hauler-Mutant | -7/Garrison Bothacker-Skirmisher | -7/Factory Bothacker-Mutant | -7/Garrison Bothacker-Mutant | -6/Factory Bothacker-Mutant | -6/Garrison Bothacker-Mutant | -6/Factory Botlord-Mutant | -6/Garrison Botlord-Mutant | -5/Factory Botlord-Mutant | -5/Garrison Botlord-Mutant | -4/Factory Botlord-Mutant | -4/Garrison Botlord-Mutant | -3/Research Botlord-Mutant | -3/Garrison Botlord-Mutant | -2/Research Botlord-Mutant | -2/Garrison Botlord-Mutant | -1/Access Botlord-Mutant | -1/Garrison Botlord-Mutant | -1/Access Resources | -11 -10 -10 -10 -9 -8 -7 -7 -7 -7 -6 -6 -6 -6 -5 -5 -4 -4 -3 -3 -2 -2 -1 -1 -1 ----------- Run | Scr Mat Min Exi Min Mat Fac Gar Fac Gar Fac Gar Fac Gar Fac Gar Fac Gar Res Gar Res Gar Acc Gar Acc Matter Collected 15086 | 231 357 186 77 206 643 . 721 680 778 619 906 . 669 615 542 . 784 35 1048 483 1363 482 2253 1408 Remotely . | . . . . . . . . . . . . . . . . . . . . . . . . . Salvage Created 9456 | . 515 213 . 153 1318 . 765 874 733 234 837 . 293 30 167 . 530 . 690 161 849 157 398 539 Parts 508 | . 40 7 . 5 74 . 41 49 33 9 38 . 14 2 10 . 18 . 37 7 45 19 20 40 Haulers Intercepted 6 | . 2 . . . 4 . . . . . . . . . . . . . . . . . . . Recyclers Shooed 2 | . 1 . . . . . . . . . . . . 1 . . . . . . . . . . Parts Field Recycled . | . . . . . . . . . . . . . . . . . . . . . . . . . Retrieved Matter . | . . . . . . . . . . . . . . . . . . . . . . . . . Parts Self-Destructed . | . . . . . . . . . . . . . . . . . . . . . . . . . Prevented . | . . . . . . . . . . . . . . . . . . . . . . . . . Kills | -11 -10 -10 -10 -9 -8 -7 -7 -7 -7 -6 -6 -6 -6 -5 -5 -4 -4 -3 -3 -2 -2 -1 -1 -1 ------- Run | Scr Mat Min Exi Min Mat Fac Gar Fac Gar Fac Gar Fac Gar Fac Gar Fac Gar Res Gar Res Gar Acc Gar Acc Combat Hostiles Destroyed 192 | . 12 2 . 5 25 . 21 17 23 4 18 . 5 1 3 . 10 . 8 2 14 6 9 7 Melee 1 | . . . . . . . . . 1 . . . . . . . . . . . . . . . Guns 102 | . 12 2 . 5 14 . 7 11 8 4 7 . 4 . 3 . 6 . 8 2 4 . 1 4 Cannons 36 | . . . . . 11 . 7 1 . . . . . . . . . . . . 10 1 3 3 AOE 50 | . . . . . . . 7 5 13 . 9 . 1 1 . . 4 . . . . 5 5 . Classes Destroyed 18 | . 5 1 . 1 4 . 3 3 . . . . . . 1 . . . . . . . . . Worker 5 | . . . . . 1 . . 3 . . . . . . . . . . . . . . . 1 Builder 2 | . . . . . . . . 1 . . . . . . . . . . . . . . . 1 Tunneler 1 | . . . . . 1 . . . . . . . . . . . . . . . . . . . Hauler 6 | . 2 . . . 4 . . . . . . . . . . . . . . . . . . . Recycler 1 | . . . . . . . . 1 . . . . . . . . . . . . . . . . Operator 1 | . 1 . . . . . . . . . . . . . . . . . . . . . . . Watcher 10 | . 2 . . . 5 . . 1 . . . . . . . . . . . . . 1 1 . Swarmer 62 | . 5 . . . 3 . 6 2 10 . 9 . 2 1 1 . 5 . 2 . 5 5 6 . Grunt 64 | . 7 1 . . 11 . 7 8 8 1 6 . 2 . . . 7 . 4 . 1 . 1 . Brawler 7 | . . . . . . . 1 1 . . . . 1 . . . . . . . 4 . . . Duelist 3 | . . . . . . . 2 . . . . . . . 1 . . . . . . . . . Protector 1 | . . . . . . . . 1 . . . . . . . . . . . . . . . . Sentry 25 | . . . . . 8 . 3 3 5 2 3 . . . . . . . . 1 . . . . Demolisher 2 | . . . . 2 . . . . . . . . . . . . . . . . . . . . Hunter 7 | . . . . . 3 . 1 . . . . . . . . . . . . . . . 2 1 Programmer 19 | . . . . . . . 1 2 . 1 . . 1 . . . . . 3 1 4 1 . 5 Behemoth 3 | . . . . . . . . . . . . . . . 1 . . . . . 1 . . 1 Assembled 4 | . . 1 . 3 . . . . . . . . . . . . . . . . . . . . Best Kill Streak 9 | . 5 1 . 5 9 . 9 9 4 2 5 . 2 1 1 . 4 . 1 2 4 4 5 2 Combat Bots Only 9 | . 5 1 . 5 6 . 9 5 4 2 5 . 2 1 1 . 4 . 1 2 4 4 5 2 Max Kills in Single Turn 3 | . 1 1 . 1 1 . 3 3 3 1 2 . 1 1 1 . 2 . 1 1 1 3 3 1 Gunslinging 1 | . . . . . . . . 1 . . . . . . . . . . . . . . . . Exploded 3 | . . . . . . . 3 2 3 . 2 . 1 1 . . 2 . . . . 3 3 . Melee 1 | . . . . . . . . . 1 . . . . . . . . . . . . . . . Uniques/NPCs Destroyed . | . . . . . . . . . . . . . . . . . . . . . . . . . Combat | -11 -10 -10 -10 -9 -8 -7 -7 -7 -7 -6 -6 -6 -6 -5 -5 -4 -4 -3 -3 -2 -2 -1 -1 -1 -------- Run | Scr Mat Min Exi Min Mat Fac Gar Fac Gar Fac Gar Fac Gar Fac Gar Fac Gar Res Gar Res Gar Acc Gar Acc Damage Taken 19904 | . 575 179 31 528 816 . 1220 1125 2679 599 658 49 634 137 72 . 580 25 1598 648 1208 508 3120 2915 Core 1892 | . 62 12 15 118 117 . 115 103 310 95 58 . 44 . . . 20 . 87 81 184 27 274 170 Absorbed by Shields 1541 | . . . . . . . . . . . 2 . . 129 69 . 518 23 78 99 134 88 290 111 Reduced by Siege Mode 256 | . . . . . . . . . . . . . . . . . . . . . . . . 256 Core Remaining (%) 73 | 100 . . . 17 78 . . . 24 . . . 76 . 100 . 98 . 93 . 81 . . 70 Volleys Fired 1119 | . 57 33 . . 98 . 43 56 54 21 68 4 45 22 72 1 76 4 79 28 77 33 174 74 Largest 4 | . 2 2 . . 3 . 3 3 3 3 3 1 3 3 3 2 3 1 4 4 3 2 3 4 Hottest 171 | . 70 100 . . 96 . 126 106 135 111 131 30 106 83 79 46 101 40 136 138 150 115 150 171 Shots Fired 1926 | . 113 53 . 18 179 . 108 135 102 53 94 4 76 35 94 2 131 4 145 49 117 37 211 166 Gun 1231 | . 113 40 . 18 81 . 71 106 82 43 57 . 52 20 78 2 113 . 115 31 46 4 45 114 Cannon 323 | . . . . . 98 . 27 8 . 7 . . . . . . . . . . 50 6 101 26 Launcher 92 | . . . . . . . 10 4 16 . 26 . 7 2 . . 4 . 5 . . 5 13 . Special 280 | . . 13 . . . . . 17 4 3 11 4 17 13 16 . 14 4 25 18 21 22 52 26 Kinetic 1334 | . 108 37 . . 100 . 86 92 47 39 42 . 46 19 78 2 113 . 115 31 96 10 146 127 Thermal 131 | . 5 16 . 18 79 . . . . . . . . . . . . . . . . . . 13 Explosive 48 | . . . . . . . 10 4 16 . . . . . . . 4 . . . . 5 9 . Electromagnetic 146 | . . . . . . . 12 22 35 11 41 . 13 3 . . . . 5 . . . 4 . Robot Hit Streak 35 | . 11 13 . 20 19 . 13 26 13 8 10 1 15 6 11 . 14 17 18 32 35 13 21 31 Robot Miss Streak 8 | . 8 4 . 1 4 . 3 3 4 3 2 1 2 4 2 . 3 . 4 3 4 2 2 4 Penetration Max 2 | . . . . . . . 1 1 . . 1 . . . . . 1 . 1 1 2 . . 1 Secondary Targets 5 | . 1 . . . . . . 1 . 1 . . . . . . . . 1 1 . . . . Max Gunslinging Chain 1 | . 1 . . . . . . 1 . 1 . . . . . . . . 1 1 . . . . Autonomous 98 | . . . . 18 80 . . . . . . . . . . . . . . . . . . . Shots Hit Robots 1207 | . 74 26 . 15 102 . 66 105 71 32 36 2 39 18 64 . 82 4 75 40 77 29 132 118 Core Hits 471 | . 25 9 . 6 42 . 43 49 57 19 26 . 10 6 11 . 26 . 24 11 25 21 27 34 Critical Hits 79 | . . . . . 8 . 4 5 . . . . . . 4 . 5 . 10 5 15 2 11 10 Critical Kills 27 | . . . . . 5 . 3 3 . . . . . . . . 1 . 5 2 4 . 2 2 Critical Parts Destroyed 36 | . . . . . 3 . 1 2 . . . . . . 2 . 3 . 5 . 8 2 4 6 Melee Attacks 35 | . . . . . . . . 2 6 1 . . 3 . . 1 14 . . . 8 . . . Impact 35 | . . . . . . . . 2 6 1 . . 3 . . 1 14 . . . 8 . . . Slashing . | . . . . . . . . . . . . . . . . . . . . . . . . . Piercing . | . . . . . . . . . . . . . . . . . . . . . . . . . Sneak Attacks . | . . . . . . . . . . . . . . . . . . . . . . . . . Combat Hostiles . | . . . . . . . . . . . . . . . . . . . . . . . . . Follow-up Attacks . | . . . . . . . . . . . . . . . . . . . . . . . . . Damage Inflicted 28647 | . 905 317 . 434 3127 . 1967 2424 2440 564 1419 . 509 327 988 . 1717 . 1538 400 2566 1032 3074 2899 Guns 14648 | . 905 317 . 434 2085 . 835 1486 817 488 408 . 347 239 988 . 1292 . 1181 400 297 27 232 1870 Cannons 7439 | . . . . . 1042 . 381 143 . 76 . . . . . . . . . . 2269 367 2304 857 Explosions 6232 | . . . . . . . 751 774 1488 . 1011 . 162 88 . . 425 . 357 . . 638 538 . Melee 125 | . . . . . . . . . 125 . . . . . . . . . . . . . . . Ramming 203 | . . . . . . . . 21 10 . . . . . . . . . . . . . . 172 Kinetic 18404 | . 866 280 . . 1078 . 1077 1362 471 415 242 . 308 221 988 . 1292 . 1181 400 2566 394 2536 2727 Thermal 3595 | . 39 37 . 434 2049 . 184 119 73 . 215 . 61 . . . . . . . . . 384 . Explosive 3700 | . . . . . . . 567 655 1415 . . . . . . . 425 . . . . 638 . . Electromagnetic 2620 | . . . . . . . 139 267 346 149 962 . 140 106 . . . . 357 . . . 154 . Impact 125 | . . . . . . . . . 125 . . . . . . . . . . . . . . . Slashing . | . . . . . . . . . . . . . . . . . . . . . . . . . Piercing . | . . . . . . . . . . . . . . . . . . . . . . . . . Highest Corruption 7 | . . . . . 1 . 5 7 7 2 2 . . 2 2 . . . 6 . . . 4 6 Average Corruption 3 | . . . . . 1 . 5 5 5 1 1 . . 1 1 . . . 5 . . . 1 3 Corruption Purged 15 | . . . . . . . . . 7 . 2 . . . 2 . . . . . . . 4 . Effects 281 | . . . . . 3 . 40 38 85 2 29 . . 6 10 . . . 53 . . . 6 9 Message Errors 58 | . . . . . 2 . 7 7 12 1 9 . . 1 4 . . . 9 . . . 2 4 Matter Fused 53 | . . . . . . . 7 9 21 . . . . . . . . . 15 . . . 1 . Heat Flow Errors 35 | . . . . . . . 6 6 9 . 6 . . 1 3 . . . 3 . . . 1 . Energy Discharges 36 | . . . . . . . 2 2 14 . 4 . . 2 2 . . . 8 . . . . 2 Parts Rejected 2 | . . . . . . . . 1 1 . . . . . . . . . . . . . . . Data Loss (minor) 37 | . . . . . 1 . 7 3 10 1 5 . . 1 . . . . 7 . . . 2 . Data Loss (major) 13 | . . . . . . . 2 1 9 . . . . . . . . . 1 . . . . . Misfires 14 | . . . . . . . 3 2 5 . . . . . . . . . 4 . . . . . Targeting Errors 31 | . . . . . . . 6 6 4 . 5 . . 1 1 . . . 5 . . . . 3 Weapon Failures 2 | . . . . . . . . 1 . . . . . . . . . . 1 . . . . . Overload Shots . | . . . . . . . . . . . . . . . . . . . . . . . . . Overflow Damage 417 | . . . . . 1 . 15 33 41 . 24 . . . . . 41 . . . 92 60 40 70 Projectiles 205 | . . . . . 1 . . . . . . . . . . . . . . . 92 60 37 15 Explosions 152 | . . . . . . . 15 33 36 . 24 . . . . . 41 . . . . . 3 . Melee 60 | . . . . . . . . . 5 . . . . . . . . . . . . . . 55 Knockbacks 27 | . . . . . 9 . . 1 1 . . . . . . . . . . . 5 2 6 3 Impact 2 | . . . . . . . . . 1 . . . . . . . . . . . . . . 1 Kinetic 22 | . . . . . 7 . . 1 . . . . . . . . . . . . 4 2 6 2 Secondary 3 | . . . . . 2 . . . . . . . . . . . . . . . 1 . . . Self-Inflicted Damage 418 | . . . . . . . 137 112 110 . 57 . . . . . . . . . . . 2 . Shots 16 | . . . . . . . 4 3 4 . 4 . . . . . . . . . . . 1 . Rammed 7 | . . . . . . . . 2 1 . . . . . . . . . . . . . . 4 Targets Rammed 7 | . . . . . . . . 2 1 . . . . . . . . . . . . . . 4 Kicked . | . . . . . . . . . . . . . . . . . . . . . . . . . Crushed . | . . . . . . . . . . . . . . . . . . . . . . . . . Highest Temperature 434 | . 89 40 . . 156 . 234 278 434 132 265 3 64 83 253 . 12 . 194 36 19 7 187 273 Average Temperature 61 | . 41 12 . . 22 . 71 79 105 43 80 3 32 30 88 . 1 . 34 8 3 7 22 85 Received Heat Transfer 2424 | . 192 75 . . 261 . 222 258 618 72 54 12 63 4 18 . 99 . 102 128 89 45 45 67 Effects 3 | . . . . . . . . . 2 . . . . . 1 . . . . . . . . . Shutdowns 1 | . . . . . . . . . 1 . . . . . . . . . . . . . . . Interference 1 | . . . . . . . . . . . . . . . 1 . . . . . . . . . Short Circuit 1 | . . . . . . . . . 1 . . . . . . . . . . . . . . . Siege Activations 5 | . . . . . . . . . . . . . . . . . . . . 2 . . 1 2 Total Turns 117 | . . . . . . . . . . . . . . . . . . . . 7 . . 47 63 Longest Duration 47 | . . . . . . . . . . . . . . . . . . . . 5 . . 47 40 Robots Corrupted 2 | . . . . . . . . . . . 2 . . . . . . . . . . . . . Combat Hostiles 2 | . . . . . . . . . . . 2 . . . . . . . . . . . . . Parts Fried 10 | . . . . . . . . 1 2 . 4 . . . . . . . 3 . . . . . Impact Corruptions 3 | . . . . . . . . . 1 . . . . . . . . . . . . . . 2 Robots Melted . | . . . . . . . . . . . . . . . . . . . . . . . . . Combat Hostiles . | . . . . . . . . . . . . . . . . . . . . . . . . . Parts Melted 6 | . 1 . . . 3 . . . . 1 1 . . . . . . . . . . . . . Heat Transferred 4217 | . 111 111 . 555 2590 . 250 150 50 . 150 . 100 . . . . . . . . . 150 . Parts Sabotaged . | . . . . . . . . . . . . . . . . . . . . . . . . . Parts Stolen . | . . . . . . . . . . . . . . . . . . . . . . . . . Parts Stripped . | . . . . . . . . . . . . . . . . . . . . . . . . . Power Chain Reactions 11 | . . . . . . . 1 1 1 . 4 . 1 . . . . . . . . . 3 . Missiles Intercepted . | . . . . . . . . . . . . . . . . . . . . . . . . . Alert | -11 -10 -10 -10 -9 -8 -7 -7 -7 -7 -6 -6 -6 -6 -5 -5 -4 -4 -3 -3 -2 -2 -1 -1 -1 ------- Run | Scr Mat Min Exi Min Mat Fac Gar Fac Gar Fac Gar Fac Gar Fac Gar Fac Gar Res Gar Res Gar Acc Gar Acc Peak Influence 1592 | . 156 47 . 50 414 160 915 819 817 443 1090 600 976 934 929 489 1474 858 997 560 1087 667 1592 970 Initial 955 | . . 2 . . 19 146 112 480 96 428 208 571 420 512 311 487 342 828 493 560 60 652 109 955 Average 693 | . 55 10 . 37 214 147 602 504 585 316 896 583 651 531 662 487 1005 778 788 125 794 269 968 223 Maximum Alert Level 4 | . . . . . 2 . 3 3 3 2 3 2 3 3 3 2 4 3 3 2 3 2 4 3 Low Security (%) 15 | 100 100 100 . 100 31 100 5 13 12 11 . . . . . . . . . 86 . 41 11 80 Level 1 10 | . . . . . 63 . 13 16 10 52 9 . . 41 1 . 9 . . 4 5 35 9 . Level 2 24 | . . . . . 4 . 38 35 14 35 6 100 71 15 66 100 19 33 40 9 19 23 15 . Level 3 35 | . . . . . . . 42 34 62 . 84 . 28 42 31 . 17 66 59 . 74 . 17 19 Level 4 13 | . . . . . . . . . . . . . . . . . 54 . . . . . 46 . Level 5 . | . . . . . . . . . . . . . . . . . . . . . . . . . High Security . | . . . . . . . . . . . . . . . . . . . . . . . . . Max Security . | . . . . . . . . . . . . . . . . . . . . . . . . . Squads Dispatched 37 | . 2 . . . 5 . . 6 . 5 . . . 3 . . . 1 . 6 . 3 . 6 Investigation 3 | . . . . . 2 . . . . 1 . . . . . . . . . . . . . . Extermination 13 | . . . . . . . . 2 . 1 . . . 1 . . . . . 1 . 2 . 6 Reinforcement 10 | . 2 . . . 3 . . 3 . . . . . . . . . . . 2 . . . . Assault 2 | . . . . . . . . 1 . . . . . . . . . 1 . . . . . . Garrison 9 | . . . . . . . . . . 3 . . . 2 . . . . . 3 . 1 . . Intercept . | . . . . . . . . . . . . . . . . . . . . . . . . . Construction Impeded 1 | . . . . . . . . 1 . . . . . . . . . . . . . . . . Haulers Reinforced 1 | . . . . . . . . 1 . . . . . . . . . . . . . . . . Alert ID Control Effect 96 | . . . . . . . . . . . . . 2 4 10 . 6 1 6 10 4 18 16 19 Stealth | -11 -10 -10 -10 -9 -8 -7 -7 -7 -7 -6 -6 -6 -6 -5 -5 -4 -4 -3 -3 -2 -2 -1 -1 -1 --------- Run | Scr Mat Min Exi Min Mat Fac Gar Fac Gar Fac Gar Fac Gar Fac Gar Fac Gar Res Gar Res Gar Acc Gar Acc Distress Signals 6 | . 2 . . . 2 . . . . . . . . . . . . . . 1 . . 1 . Communications Jammed 25 | . . . . . . . . . . . . . . . . . . 19 . . . 6 . . Distress Signals 23 | . . . . . . . . . . . . . . . . . . 19 . . . 4 . . Times Spotted 557 | . 28 3 1 14 35 . 22 23 29 10 36 1 23 23 27 . 49 5 31 20 35 28 72 42 Peak Tracking Total 11 | . 6 2 1 11 6 . 8 5 8 4 8 1 3 4 3 . 5 2 5 6 8 9 4 5 Tactical Retreats 114 | . 2 2 . . 1 . 1 . 3 . 12 . 5 . 9 . 18 . 1 . 14 . 45 1 Traps | -11 -10 -10 -10 -9 -8 -7 -7 -7 -7 -6 -6 -6 -6 -5 -5 -4 -4 -3 -3 -2 -2 -1 -1 -1 ------- Run | Scr Mat Min Exi Min Mat Fac Gar Fac Gar Fac Gar Fac Gar Fac Gar Fac Gar Res Gar Res Gar Acc Gar Acc Traps Triggered 99 | . . . . . 3 . 15 . 8 1 10 . 10 1 13 . 9 . 7 1 12 . 8 1 Indirectly 5 | . . . . . . . . . . . 4 . 1 . . . . . . . . . . . Trap Hack Attempts . | . . . . . . . . . . . . . . . . . . . . . . . . . Triggered . | . . . . . . . . . . . . . . . . . . . . . . . . . Disarmed . | . . . . . . . . . . . . . . . . . . . . . . . . . Reprogrammed . | . . . . . . . . . . . . . . . . . . . . . . . . . Reused . | . . . . . . . . . . . . . . . . . . . . . . . . . Traps Extracted . | . . . . . . . . . . . . . . . . . . . . . . . . . Installed . | . . . . . . . . . . . . . . . . . . . . . . . . . Triggered 3 | . . . . . . . . . . . 3 . . . . . . . . . . . . . Machines | -11 -10 -10 -10 -9 -8 -7 -7 -7 -7 -6 -6 -6 -6 -5 -5 -4 -4 -3 -3 -2 -2 -1 -1 -1 ---------- Run | Scr Mat Min Exi Min Mat Fac Gar Fac Gar Fac Gar Fac Gar Fac Gar Fac Gar Res Gar Res Gar Acc Gar Acc Machines Disabled 77 | . . . . . 4 . 5 10 3 1 7 . 5 1 6 . 6 . 11 . 6 . 9 3 Max in Single Turn 6 | . . . . . 1 . 1 6 1 1 2 . 1 . 2 . 1 . 2 . 2 . 2 1 Garrison Relay 36 | . . . . . . . 4 . 3 . 4 . 4 . 4 . 4 . 4 . 4 . 5 . Phase Generator 4 | . . . . . . . . . . . . . . . 1 . . . 1 . 1 . 1 . Machines Sabotaged . | . . . . . . . . . . . . . . . . . . . . . . . . . Garrisons Compromised . | . . . . . . . . . . . . . . . . . . . . . . . . . Overloaded Fab Kills . | . . . . . . . . . . . . . . . . . . . . . . . . . Fab Network Shutdowns . | . . . . . . . . . . . . . . . . . . . . . . . . . Hacking | -11 -10 -10 -10 -9 -8 -7 -7 -7 -7 -6 -6 -6 -6 -5 -5 -4 -4 -3 -3 -2 -2 -1 -1 -1 --------- Run | Scr Mat Min Exi Min Mat Fac Gar Fac Gar Fac Gar Fac Gar Fac Gar Fac Gar Res Gar Res Gar Acc Gar Acc Machines Accessed 33 | . 4 1 2 . 9 2 . 3 . 3 . 3 . 1 . 1 . 1 . 1 . 2 . . Terminals 19 | . 4 1 . . 8 1 . 1 . 2 . 1 . . . . . . . . . 1 . . Fabricators 1 | . . . . . . . . . . . . 1 . . . . . . . . . . . . Repair Stations . | . . . . . . . . . . . . . . . . . . . . . . . . . Recycling Units . | . . . . . . . . . . . . . . . . . . . . . . . . . Scanalyzers 2 | . . . . . 1 . . 1 . . . . . . . . . . . . . . . . Garrison Access 9 | . . . . . . 1 . 1 . 1 . 1 . 1 . 1 . 1 . 1 . 1 . . Total Hacks 93 | . 14 3 2 . 38 5 . 8 . 5 . 9 . 3 . 1 . 1 . 1 . 3 . . Successful 50 | . 6 2 2 . 20 1 . 6 . 4 . 3 . 2 . 1 . 1 . 1 . 1 . . Failed 43 | . 8 1 . . 18 4 . 2 . 1 . 6 . 1 . . . . . . . 2 . . Catastrophic . | . . . . . . . . . . . . . . . . . . . . . . . . . Database Lockouts . | . . . . . . . . . . . . . . . . . . . . . . . . . Manual 57 | . 12 3 1 . 25 4 . 5 . 2 . 3 . 2 . . . . . . . . . . Terminals 70 | . 14 3 . . 36 4 . 5 . 4 . 2 . . . . . . . . . 2 . . Fabricators 5 | . . . . . . . . . . . . 5 . . . . . . . . . . . . Repair Stations . | . . . . . . . . . . . . . . . . . . . . . . . . . Recycling Units . | . . . . . . . . . . . . . . . . . . . . . . . . . Scanalyzers 4 | . . . . . 2 . . 2 . . . . . . . . . . . . . . . . Garrison Access 12 | . . . . . . 1 . 1 . 1 . 2 . 3 . 1 . 1 . 1 . 1 . . Terminal Hacks 24 | . 4 2 2 . 14 . . 1 . 1 . . . . . . . . . . . . . . Record 1 | . . . 1 . . . . . . . . . . . . . . . . . . . . . Part Schematic 1 | . . . . . . . . . . 1 . . . . . . . . . . . . . . Robot Analysis 6 | . 1 2 . . 3 . . . . . . . . . . . . . . . . . . . Prototype ID Bank 7 | . 2 . . . 5 . . . . . . . . . . . . . . . . . . . Terminal Index 2 | . . . . . 1 . . 1 . . . . . . . . . . . . . . . . Alert Level 1 | . . . . . 1 . . . . . . . . . . . . . . . . . . . Unreport Threat 1 | . . . . . 1 . . . . . . . . . . . . . . . . . . . Locate Traps 1 | . 1 . . . . . . . . . . . . . . . . . . . . . . . Zone Layout 3 | . . . . . 3 . . . . . . . . . . . . . . . . . . . EX-Prototype ID Bank 1 | . . . 1 . . . . . . . . . . . . . . . . . . . . . Fabricator Hacks 2 | . . . . . . . . . . . . 2 . . . . . . . . . . . . Load Schematic 1 | . . . . . . . . . . . . 1 . . . . . . . . . . . . Build 1 | . . . . . . . . . . . . 1 . . . . . . . . . . . . Repair Station Hacks . | . . . . . . . . . . . . . . . . . . . . . . . . . Recycling Unit Hacks . | . . . . . . . . . . . . . . . . . . . . . . . . . Scanalyzer 4 | . . . . . 2 . . 2 . . . . . . . . . . . . . . . . Insert Component 2 | . . . . . 1 . . 1 . . . . . . . . . . . . . . . . Analyze 2 | . . . . . 1 . . 1 . . . . . . . . . . . . . . . . Garrison Access Hacks 9 | . . . . . . 1 . 1 . 1 . 1 . 1 . 1 . 1 . 1 . 1 . . Unlock Access 9 | . . . . . . 1 . 1 . 1 . 1 . 1 . 1 . 1 . 1 . 1 . . Unauthorized Hacks 11 | . 2 . . . 4 . . 2 . 2 . . . 1 . . . . . . . . . . Terminals 10 | . 2 . . . 4 . . 2 . 2 . . . . . . . . . . . . . . Assimilate 2 | . 1 . . . 1 . . . . . . . . . . . . . . . . . . . Botnet 4 | . . . . . 2 . . 1 . 1 . . . . . . . . . . . . . . Operators 4 | . 1 . . . 1 . . 1 . 1 . . . . . . . . . . . . . . Fabricators . | . . . . . . . . . . . . . . . . . . . . . . . . . Repair Stations . | . . . . . . . . . . . . . . . . . . . . . . . . . Recycling Units . | . . . . . . . . . . . . . . . . . . . . . . . . . Scanalyzers . | . . . . . . . . . . . . . . . . . . . . . . . . . Garrison Access 1 | . . . . . . . . . . . . . . 1 . . . . . . . . . . Restock 1 | . . . . . . . . . . . . . . 1 . . . . . . . . . . Data Cores Recovered . | . . . . . . . . . . . . . . . . . . . . . . . . . Used . | . . . . . . . . . . . . . . . . . . . . . . . . . Hacking Detections 28 | . 4 1 . . 9 1 . 2 . 3 . 3 . 1 . 1 . 1 . 1 . 1 . . Full Trace Events . | . . . . . . . . . . . . . . . . . . . . . . . . . Feedback Events . | . . . . . . . . . . . . . . . . . . . . . . . . . Feedback Blocked . | . . . . . . . . . . . . . . . . . . . . . . . . . Robot Schematics Acquired . | . . . . . . . . . . . . . . . . . . . . . . . . . Robots Built . | . . . . . . . . . . . . . . . . . . . . . . . . . Matter . | . . . . . . . . . . . . . . . . . . . . . . . . . Time . | . . . . . . . . . . . . . . . . . . . . . . . . . Total Robot Build Rating . | . . . . . . . . . . . . . . . . . . . . . . . . . Part Schematics Acquired 3 | . . . . . 1 . . 1 . 1 . . . . . . . . . . . . . . Parts Built 1 | . . . . . . . . . . . . 1 . . . . . . . . . . . . Matter 168 | . . . . . . . . . . . . 168 . . . . . . . . . . . . Time 42 | . . . . . . . . . . . . 42 . . . . . . . . . . . . Total Part Build Rating 4 | . . . . . . . . . . . . 4 . . . . . . . . . . . . Parts Repaired . | . . . . . . . . . . . . . . . . . . . . . . . . . Time . | . . . . . . . . . . . . . . . . . . . . . . . . . Parts Recycled . | . . . . . . . . . . . . . . . . . . . . . . . . . Recycled Matter . | . . . . . . . . . . . . . . . . . . . . . . . . . Retrieved Matter . | . . . . . . . . . . . . . . . . . . . . . . . . . Retrieved Components . | . . . . . . . . . . . . . . . . . . . . . . . . . Parts Scanalyzed 2 | . . . . . 1 . . 1 . . . . . . . . . . . . . . . . Part Schematics Acquired 2 | . . . . . 1 . . 1 . . . . . . . . . . . . . . . . Parts Damaged . | . . . . . . . . . . . . . . . . . . . . . . . . . Bothacking | -11 -10 -10 -10 -9 -8 -7 -7 -7 -7 -6 -6 -6 -6 -5 -5 -4 -4 -3 -3 -2 -2 -1 -1 -1 ------------ Run | Scr Mat Min Exi Min Mat Fac Gar Fac Gar Fac Gar Fac Gar Fac Gar Fac Gar Res Gar Res Gar Acc Gar Acc Used RIF Installer 9 | . . . . . . . 1 . 1 . 1 . 1 . 1 . 1 . 1 . 1 . 1 . Signal Jammer 1 | . . . . . . . . . . . . . 1 . . . . . . . . . . . Robot Detection 1 | . . . . . . . . . . . . . . . 1 . . . . . . . . . Patrol Navigation 1 | . . . . . . . . . 1 . . . . . . . . . . . . . . . Watcher Feeds 1 | . . . . . . . . . . . . . . . . . 1 . . . . . . . Alert ID Control 1 | . . . . . . . . . . . 1 . . . . . . . . . . . . . Structural Interface 1 | . . . . . . . . . . . . . . . . . . . . . . . 1 . Program Shield 1 | . . . . . . . . . . . . . . . . . . . . . 1 . . . Autoassimilate 1 | . . . . . . . . . . . . . . . . . . . 1 . . . . . Robots Hacked 165 | . . . . . . . . 3 4 1 10 1 12 4 10 . 10 4 23 7 19 11 26 20 Non-combat 14 | . . . . . . . . 3 . . . . . 1 . . . 1 . 1 . 3 . 5 Combat 151 | . . . . . . . . . 4 1 10 1 12 3 10 . 10 3 23 6 19 8 26 15 Autoassimilated 14 | . . . . . . . . . . . . . . . . . . . 3 1 3 2 2 3 Robot Hacks Applied 185 | . . . . . . . . 7 4 1 10 3 13 10 11 . 10 4 20 12 16 16 25 23 parse_system 7 | . . . . . . . . . . . . 1 . . 1 . . . . 2 . 1 1 1 generate_echo 1 | . . . . . . . . . . . . . . . . . . . . . . . . 1 drop_inventory 6 | . . . . . . . . . . . . . . . . . . 1 . . . 2 . 3 find_recycling 1 | . . . . . . . . 1 . . . . . . . . . . . . . . . . purge_threat 21 | . . . . . . . . 4 . . . . . 4 . . . . . 4 . 4 . 5 block_reporting 2 | . . . . . . . . . . . . . . 1 . . . . . . . 1 . . summon_haulers 1 | . . . . . . . . . . . . . . 1 . . . . . . . . . . find_garrison 3 | . . . . . . . . . . . . 1 . 1 . . . . . . . 1 . . overload_power 4 | . . . . . . . . . . . 1 . . . 1 . . . . . . . 1 1 disable_weapons 4 | . . . . . . . . . . . 1 . 1 . . . . . . . . . . 2 reboot_system 3 | . . . . . . . . . . . . . . 1 . . 1 . 1 . . . . . go_dormant 1 | . . . . . . . . . . . . . . . . . 1 . . . . . . . overwrite_iff 19 | . . . . . . . . . . . 1 . 2 . 1 . 3 . 2 2 6 . 1 1 streamctrl_high 4 | . . . . . . . . . . . . . 2 . . . . . . . 1 . 1 . formatsys_low 5 | . . . . . . . . 2 . . . . . 1 . . . . . . . 1 . 1 formatsys_high 103 | . . . . . . . . . 4 1 7 1 8 1 8 . 5 3 17 4 9 6 21 8 Relay Couplers Released 149 | . . . . . . . 17 3 11 4 14 . 16 4 15 . 14 . 17 . 15 . 19 . Machine Destruction 138 | . . . . . . . 17 . 11 . 14 . 16 . 15 . 14 . 17 . 15 . 19 . Programmers 11 | . . . . . . . . 3 . 4 . . . 4 . . . . . . . . . . Attached 85 | . . . . . . . . 2 3 1 7 1 9 3 6 . 6 3 10 4 6 6 11 7 Robots Rewired 16 | . . . . . . . . . . . . . . . . . . . . . . . 16 . Allies Hacked 4 | . . . . . . . . . . . . . . . . . . . . 2 . . . 2 Hacks Repelled . | . . . . . . . . . . . . . . . . . . . . . . . . . Allies | -11 -10 -10 -10 -9 -8 -7 -7 -7 -7 -6 -6 -6 -6 -5 -5 -4 -4 -3 -3 -2 -2 -1 -1 -1 -------- Run | Scr Mat Min Exi Min Mat Fac Gar Fac Gar Fac Gar Fac Gar Fac Gar Fac Gar Res Gar Res Gar Acc Gar Acc Total Allies 160 | . 1 . . . . . . 2 4 1 8 1 11 2 9 . 8 3 22 6 19 9 41 13 Largest Group 34 | . 1 1 . . . . . 1 4 4 6 6 15 14 18 18 18 16 29 23 20 20 34 33 Highest-Rated Group 1682 | . 10 10 . . . . . 10 128 128 204 185 497 492 638 638 678 627 1297 1036 1065 1078 1682 1629 Highest-Rated Ally 222 | . 10 10 . . . . . 10 32 32 47 41 41 47 47 47 58 64 64 69 69 69 222 69 Total Orders 271 | . 2 2 . . . . . . 6 9 8 9 11 17 15 4 8 11 23 15 19 20 65 27 STAY 163 | . 1 1 . . . . . . 4 5 4 5 8 11 10 2 4 5 15 7 13 10 43 15 ROAM 1 | . . . . . . . . . . . . . . . . . . 1 . . . . . . FOLLOW 104 | . 1 1 . . . . . . 2 4 4 4 3 6 5 2 4 2 8 8 6 10 22 12 EXPLORE 2 | . . . . . . . . . . . . . . . . . . 2 . . . . . . RETURN 1 | . . . . . . . . . . . . . . . . . . 1 . . . . . . Ally Attacks 1067 | . . . . . . . . . 7 38 24 . 50 84 60 . 64 2 44 152 34 92 133 283 Total Damage 32299 | . . . . . . . . . 243 1005 382 . 918 2579 1434 . 2182 49 985 4277 1114 2907 4519 9705 Kills 172 | . . . . . . . . . 3 5 1 . 5 23 12 . 13 1 6 20 4 21 20 38 Allies Corrupted 8 | . . . . . . . . . . . . . . . . . . . . 1 . 2 1 4 Allies Melted 1 | . . . . . . . . . . . . . . . . . . . 1 . . . . . Intel | -11 -10 -10 -10 -9 -8 -7 -7 -7 -7 -6 -6 -6 -6 -5 -5 -4 -4 -3 -3 -2 -2 -1 -1 -1 ------- Run | Scr Mat Min Exi Min Mat Fac Gar Fac Gar Fac Gar Fac Gar Fac Gar Fac Gar Res Gar Res Gar Acc Gar Acc Robot Analysis Total 6 | . 1 2 . . 3 . . . . . . . . . . . . . . . . . . . Derelict Logs Recovered 2 | . . 2 . . . . . . . . . . . . . . . . . . . . . . Drone Launches 2 | . . . . . . . . . . . . . . . . . . 2 . . . . . . Drone Recoveries 2 | . . . . . . . . . . . . . . . . . . 2 . . . . . . Exploration | -11 -10 -10 -10 -9 -8 -7 -7 -7 -7 -6 -6 -6 -6 -5 -5 -4 -4 -3 -3 -2 -2 -1 -1 -1 ------------- Run | Scr Mat Min Exi Min Mat Fac Gar Fac Gar Fac Gar Fac Gar Fac Gar Fac Gar Res Gar Res Gar Acc Gar Acc Turns Passed 60248 | 112 1410 1036 951 125 2617 155 1757 1252 4472 1134 5135 354 3621 1073 4014 113 4835 598 4606 515 4960 690 11946 2767 Spaces Moved 24713 | 68 662 502 344 47 1146 89 866 453 1154 438 1394 166 1737 484 1667 32 1848 262 2161 212 2276 314 5014 1377 Core 100 | 5 . . . . . . . . 1 . 71 . . . . . . . . . . . 23 . Treads 20006 | 63 662 502 344 47 1146 89 866 453 391 188 . . . 115 1667 32 1848 262 2161 212 2276 314 4991 1377 Legs 4607 | . . . . . . . . . 762 250 1323 166 1737 369 . . . . . . . . . . Wheels . | . . . . . . . . . . . . . . . . . . . . . . . . . Hover . | . . . . . . . . . . . . . . . . . . . . . . . . . Flight . | . . . . . . . . . . . . . . . . . . . . . . . . . Fastest Speed 50 | 50 160 180 160 200 170 172 152 180 210 180 180 180 150 180 190 210 186 186 186 185 185 155 155 155 Average Speed 194 | 151 178 180 194 231 194 172 173 188 261 234 308 180 183 187 202 210 194 186 186 185 185 177 171 160 Slowest Speed 3850 | 160 180 180 200 240 280 172 180 220 2600 330 2750 180 240 290 210 210 230 186 186 186 185 185 3850 210 Overloaded Moves . | . . . . . . . . . . . . . . . . . . . . . . . . . Propulsion Burnouts . | . . . . . . . . . . . . . . . . . . . . . . . . . Robots Hopped 4 | . . . . . . . . . . . . . . . . . 4 . . . . . . . Cave-ins Triggered 2 | . . . . . . . 1 . . . . . . . . . . . . . . . 1 . Exploration Rate (%) 51 | 4 85 89 70 20 91 3 81 18 67 11 89 4 89 17 98 2 88 9 100 7 98 9 99 28 Regions Visited 24 Branch Regions 3 Pre-discovered Areas 2 | . . 1 1 . . . . . . . . . . . . . . . . . . . . . Known Exits Taken 9 | . . . . . . 1 . 1 . 1 . 1 . 1 . 1 . 1 . 1 . 1 . . Unknown Exits Taken 6 | 1 1 1 1 1 1 . . . . . . . . . . . . . . . . . . . Scrap Searched 2 | . . 2 . . . . . . . . . . . . . . . . . . . . . . Spaces Dug 174 | . . . . . 12 . 12 2 . 1 . . . . . 1 11 . . . 8 15 112 . Terrain Destroyed 927 | . . 1 . 3 38 . 78 58 107 1 10 . 1 . 78 1 17 . 58 . 96 29 345 6 Melee 22 | . . . . . . . . 2 . 1 . . . . . 1 11 . . . 7 . . . Projectile 114 | . . 1 . 3 38 . 4 2 . . 2 . 1 . 1 . 6 . 4 . 14 1 31 6 AOE 791 | . . . . . . . 74 54 107 . 8 . . . 77 . . . 54 . 75 28 314 . Terrain Rammed . | . . . . . . . . . . . . . . . . . . . . . . . . . Walls Destroyed . | . . . . . . . . . . . . . . . . . . . . . . . . . Machines Disabled . | . . . . . . . . . . . . . . . . . . . . . . . . . Actions | -11 -10 -10 -10 -9 -8 -7 -7 -7 -7 -6 -6 -6 -6 -5 -5 -4 -4 -3 -3 -2 -2 -1 -1 -1 --------- Run | Scr Mat Min Exi Min Mat Fac Gar Fac Gar Fac Gar Fac Gar Fac Gar Fac Gar Res Gar Res Gar Acc Gar Acc Total 35529 | 74 781 558 626 64 1438 91 1039 760 2514 511 2140 220 2104 630 2241 74 2972 372 2656 312 2908 424 8181 1839 Wait 8376 | . 29 14 261 16 136 . 50 184 1211 4 601 48 230 94 441 40 975 89 346 28 495 56 2700 328 Move 24672 | 67 661 501 343 46 1145 88 864 452 1152 437 1392 165 1735 483 1665 31 1840 261 2159 211 2274 313 5011 1376 Hop 2 | . . . . . . . . . . . . . . . . . 2 . . . . . . . Pick Up 318 | 1 23 3 19 . 26 . 26 27 29 14 10 1 13 7 10 . 13 11 16 11 8 2 29 19 Fast Attach 98 | 6 2 1 1 . 6 1 8 1 11 11 3 . 5 6 3 . 3 1 7 5 2 3 6 6 Attach 142 | . 2 2 . 2 7 1 6 6 17 3 8 . 7 6 7 . 6 3 9 8 4 4 21 13 Detach 39 | . . . . . 1 . 1 1 2 1 4 . 3 2 5 . 3 . 6 2 2 . 5 1 Swap 118 | . 2 . . . 3 . 3 13 10 2 7 1 13 3 5 1 9 1 5 7 9 10 8 6 Drop 168 | . 5 4 2 . 16 1 12 15 11 17 5 1 4 7 7 . 10 2 10 12 4 3 10 10 Fire 1119 | . 57 33 . . 98 . 43 56 54 21 68 4 45 22 72 1 76 4 79 28 77 33 174 74 Melee 35 | . . . . . . . . 2 6 1 . . 3 . . 1 14 . . . 8 . . . Ram . | . . . . . . . . . . . . . . . . . . . . . . . . . Kick 1 | . . . . . . . . . 1 . . . . . . . . . . . . . . . Crush 6 | . . . . . . . . 2 . . . . . . . . . . . . . . . 4 Escape Stasis 225 | . . . . . . . 26 . 10 . 42 . 46 . 26 . 21 . 14 . 23 . 15 2 Rewire 210 | . . . . . . . . 1 . . . . . . . . . . 5 . 2 . 202 . Trap . | . . . . . . . . . . . . . . . . . . . . . . . . . Miscellaneous . | . . . . . . . . . . . . . . . . . . . . . . . . . Route ------- -11/Scrapyard -10/Materials (discovered 4 exits: [*Mat x3] / *Min) -10/Mines (discovered 3 exits: [*Mat x2] / *Exi) -10/Exiles -9/Mines -8/Materials (discovered 3 exits: *Fac x3) -7/Factory -7/Garrison (discovered 3 exits: *Fac x3) -7/Factory (discovered 3 exits: [*Low x2] / Gar) -7/Garrison (discovered 3 exits: *Fac x3) -6/Factory -6/Garrison (discovered 3 exits: *Fac x3) -6/Factory -6/Garrison (discovered 3 exits: *Fac x3) -5/Factory -5/Garrison (discovered 3 exits: *Fac x3) -4/Factory -4/Garrison (discovered 3 exits: *Res x3) -3/Research -3/Garrison (discovered 3 exits: *Res x3) -2/Research (discovered 2 exits: *Acc / Gar) -2/Garrison (discovered 3 exits: *Acc x3) -1/Access -1/Garrison (discovered 3 exits: [*Acc x3]) -1/Access To Epsilon Eridani History --------- Turn | Location | Event 2 | -11/Scrapyard | Discovered new exit (range 16) 113 | -11/Scrapyard | Entered Materials 316 | -10/Materials | Build established: Mutant 347 | -10/Materials | Discovered new exit (range 15) 634 | -10/Materials | Discovered new exit (range 6) 1397 | -10/Materials | Discovered new exit (range 4) 1409 | -10/Materials | Discovered new exit (range 16) 1523 | -10/Materials | Entered Mines 1523 | -10/Mines | Accompanied by 1 ally 1536 | -10/Mines | Learned Materials emergency access door positions 1577 | -10/Mines | Learned location of Recycling (-9) 1597 | -10/Mines | A weapon hastily lodged in a ceiling crevice suddenly fell to the ground 1600 | -10/Mines | Build established: Hauler-Mutant 1725 | -10/Mines | Discovered new exit (range 6) 2064 | -10/Mines | Discovered new exit (range 5) 2440 | -10/Mines | Excavation squad dispatched 2440 | -10/Mines | A large section of the Mines collapsed 2552 | -10/Mines | Deemed a non-threat by the Exiles lab entrance 2552 | -10/Mines | Discovered new exit (range 5) 2559 | -10/Mines | Entered Exiles 2604 | -10/Exiles | Met 8R-AWN 2633 | -10/Exiles | Met EX-HEX 2790 | -10/Exiles | Met EX-DEC 2826 | -10/Exiles | Learned location of Zion (-6) 2968 | -10/Exiles | Met EX-BIN 2996 | -10/Exiles | Aligned with FarCom system 2998 | -10/Exiles | Given EX-Vault access code 3044 | -10/Exiles | Opened EX-Vault 3058 | -10/Exiles | Found AWS/Thermal 3101 | -10/Exiles | Warned to stay clear of 0b10 Research branches 3126 | -10/Exiles | Exiles lab attacked by MAIN.C 3227 | -10/Exiles | Discovered new exit (range 12) 3510 | -10/Exiles | Left Exiles lab with AWS/Thermal 3510 | -10/Exiles | Entered Mines 3511 | -9/Mines | Assembled infested the area 3533 | -9/Mines | Core integrity fell below 50% 3556 | -9/Mines | Core integrity fell below 20% 3565 | -9/Mines | Lost 3 parts (1p1n1w) 3615 | -9/Mines | Discovered new exit (range 11) 3635 | -9/Mines | Entered Materials 3635 | -8/Materials | Evolved 4 slots: Propulsion x1, Utility x2, Weapon x1 4144 | -8/Materials | Build established: Hauler-Skirmisher 4909 | -8/Materials | Discovered new exit (range 5) 5465 | -8/Materials | Discovered new exit (range 9) 5649 | -8/Materials | Discovered new exit (range 14) 6252 | -8/Materials | Entered Factory 6252 | -7/Factory | Evolved 2 slots: Propulsion x1, Utility x1 6395 | -7/Factory | Identified exit to Garrison 6407 | -7/Factory | Entered Garrison 6568 | -7/Garrison | Triggered checkpoint 6724 | -7/Garrison | Triggered checkpoint 6731 | -7/Garrison | Triggered checkpoint 6762 | -7/Garrison | Crushed by falling debris 6786 | -7/Garrison | Destroyed 9 combat bots 6854 | -7/Garrison | Discovered new exit (range 9) 6885 | -7/Garrison | Installed Relay Interface Framework 6925 | -7/Garrison | Triggered checkpoint 6967 | -7/Garrison | Garrison Relay disabled 7146 | -7/Garrison | Garrison Relay disabled 7266 | -7/Garrison | Build established: Hauler-Mutant 7293 | -7/Garrison | Discovered new exit (range 15) 7381 | -7/Garrison | Triggered checkpoint 7426 | -7/Garrison | Garrison Relay disabled 7624 | -7/Garrison | Triggered checkpoint 7677 | -7/Garrison | Discovered new exit (range 11) 7762 | -7/Garrison | Triggered checkpoint 7835 | -7/Garrison | Garrison Relay disabled 8164 | -7/Garrison | Entered Factory 8432 | -7/Factory | Discovered new exit (range 15) 8564 | -7/Factory | First assault squad dispatched 8717 | -7/Factory | Build established: Bothacker-Skirmisher 9124 | -7/Factory | Discovered new exit (range 12) 9414 | -7/Factory | Identified exit to Garrison 9416 | -7/Factory | Entered Garrison 9487 | -7/Garrison | Lost 3 parts (1n2w) 9757 | -7/Garrison | Build established: Bothacker-Mutant 9980 | -7/Garrison | Core integrity fell below 50% 10052 | -7/Garrison | Triggered checkpoint 10124 | -7/Garrison | Discovered new exit (range 10) 10163 | -7/Garrison | Expanded RIF knowledge: Watcher Feeds 10219 | -7/Garrison | Triggered checkpoint 10264 | -7/Garrison | Lost 3 parts (1p1n1w) 10269 | -7/Garrison | Build established: Bothacker-Skirmisher 10293 | -7/Garrison | Garrison Relay disabled 10455 | -7/Garrison | Triggered checkpoint 10573 | -7/Garrison | Discovered new exit (range 15) 10589 | -7/Garrison | Build established: Bothacker-Mutant 10671 | -7/Garrison | Triggered checkpoint 10738 | -7/Garrison | Garrison Relay disabled 10903 | -7/Garrison | Triggered checkpoint 13102 | -7/Garrison | Discovered new exit (range 12) 13150 | -7/Garrison | Build established: Bothacker-Skirmisher 13260 | -7/Garrison | Lost 8 parts (1p2n1u4w) 13338 | -7/Garrison | Triggered checkpoint 13379 | -7/Garrison | Garrison Relay disabled 13470 | -7/Garrison | Build established: Bothacker-Mutant 13888 | -7/Garrison | Entered Factory 13888 | -6/Factory | Accompanied by 4 allies 13888 | -6/Factory | Evolved 2 slots: Utility x1, Weapon x1 15013 | -6/Factory | Identified exit to Garrison 15022 | -6/Factory | Entered Garrison 15038 | -6/Garrison | Triggered checkpoint 15168 | -6/Garrison | Triggered checkpoint 15201 | -6/Garrison | Garrison Relay disabled 15492 | -6/Garrison | Triggered checkpoint 15598 | -6/Garrison | Discovered new exit (range 8) 15694 | -6/Garrison | Triggered checkpoint 15835 | -6/Garrison | Garrison Relay disabled 15996 | -6/Garrison | Discovered new exit (range 8) 16573 | -6/Garrison | Triggered checkpoint 16836 | -6/Garrison | Triggered checkpoint 16926 | -6/Garrison | Garrison Relay disabled 16983 | -6/Garrison | Discovered new exit (range 14) 17019 | -6/Garrison | Expanded RIF knowledge: Alert ID Control 17976 | -6/Garrison | Build established: Bothacker-Skirmisher 19693 | -6/Garrison | Garrison Relay disabled 19906 | -6/Garrison | Build established: Bothacker-Mutant 20157 | -6/Garrison | Entered Factory 20157 | -6/Factory | Accompanied by 5 allies 20457 | -6/Factory | Identified exit to Garrison 20496 | -6/Factory | Fabricated Remote Datajack (x1) 20511 | -6/Factory | Entered Garrison 20511 | -6/Garrison | Accompanied by 6 allies 20576 | -6/Garrison | Triggered checkpoint 20777 | -6/Garrison | Garrison Relay disabled 20929 | -6/Garrison | Triggered checkpoint 21659 | -6/Garrison | Discovered new exit (range 10) 21833 | -6/Garrison | Discovered new exit (range 12) 21912 | -6/Garrison | Triggered checkpoint 21968 | -6/Garrison | Triggered checkpoint 21998 | -6/Garrison | Garrison Relay disabled 22088 | -6/Garrison | Discovered new exit (range 14) 22129 | -6/Garrison | Expanded RIF knowledge: Signal Jamming 22433 | -6/Garrison | Build established: Botlord-Mutant 23105 | -6/Garrison | Triggered checkpoint 23188 | -6/Garrison | Triggered checkpoint 23314 | -6/Garrison | Garrison Relay disabled 23619 | -6/Garrison | Triggered checkpoint 23767 | -6/Garrison | Garrison Relay disabled 24132 | -6/Garrison | Entered Factory 24132 | -5/Factory | Accompanied by 13 allies 24132 | -5/Factory | Evolved 2 slots: Utility x2 25154 | -5/Factory | Identified exit to Garrison 25205 | -5/Factory | Entered Garrison 25205 | -5/Garrison | Accompanied by 13 allies 25216 | -5/Garrison | Expanded RIF knowledge: Robot Detection 25264 | -5/Garrison | Phase Generator disabled 25356 | -5/Garrison | Triggered checkpoint 25372 | -5/Garrison | Garrison Relay disabled 25823 | -5/Garrison | Spotted B-75 Beast 26806 | -5/Garrison | Destroyed B-75 Beast 26924 | -5/Garrison | Triggered checkpoint 27440 | -5/Garrison | Triggered checkpoint 27553 | -5/Garrison | Discovered new exit (range 11) 27672 | -5/Garrison | Triggered checkpoint 27808 | -5/Garrison | Build established: Botlord-Skirmisher 27850 | -5/Garrison | Triggered checkpoint 27855 | -5/Garrison | Discovered new exit (range 13) 27917 | -5/Garrison | Triggered checkpoint 27943 | -5/Garrison | Garrison Relay disabled 28026 | -5/Garrison | Triggered checkpoint 28200 | -5/Garrison | Triggered checkpoint 28246 | -5/Garrison | Build established: Botlord-Mutant 28274 | -5/Garrison | Triggered checkpoint 28303 | -5/Garrison | Garrison Relay disabled 28366 | -5/Garrison | Discovered new exit (range 10) 28772 | -5/Garrison | Triggered checkpoint 28916 | -5/Garrison | Garrison Relay disabled 29219 | -5/Garrison | Entered Factory 29219 | -4/Factory | Accompanied by 18 allies 29219 | -4/Factory | Evolved 2 slots: Utility x2 29303 | -4/Factory | Identified exit to Garrison 29332 | -4/Factory | Entered Garrison 29332 | -4/Garrison | Accompanied by 16 allies 29374 | -4/Garrison | Triggered checkpoint 29803 | -4/Garrison | Spotted B-86 Titan 30218 | -4/Garrison | Triggered checkpoint 31099 | -4/Garrison | Allies destroyed B-86 Titan 31343 | -4/Garrison | Garrison Relay disabled 31413 | -4/Garrison | Triggered checkpoint 31738 | -4/Garrison | Triggered checkpoint 31760 | -4/Garrison | Garrison Relay disabled 31826 | -4/Garrison | Discovered new exit (range 8) 31904 | -4/Garrison | Triggered checkpoint 32213 | -4/Garrison | Build established: Botlord-Tank 32484 | -4/Garrison | Triggered checkpoint 32782 | -4/Garrison | Build established: Botlord-Mutant 32834 | -4/Garrison | Discovered new exit (range 10) 32862 | -4/Garrison | Expanded RIF knowledge: Patrol Navigation 33160 | -4/Garrison | Triggered checkpoint 33200 | -4/Garrison | Garrison Relay disabled 33451 | -4/Garrison | Discovered new exit (range 14) 33520 | -4/Garrison | Triggered checkpoint 33589 | -4/Garrison | Garrison Relay disabled 34167 | -4/Garrison | Entered Research 34167 | -3/Research | Accompanied by 13 allies 34167 | -3/Research | Evolved 2 slots: Utility x2 34667 | -3/Research | First assault squad dispatched 34743 | -3/Research | Identified exit to Garrison 34765 | -3/Research | Entered Garrison 34765 | -3/Garrison | Accompanied by 16 allies 34813 | -3/Garrison | Phase Generator disabled 34890 | -3/Garrison | Garrison Relay disabled 34912 | -3/Garrison | Triggered checkpoint 35256 | -3/Garrison | Triggered checkpoint 35392 | -3/Garrison | Triggered checkpoint 35974 | -3/Garrison | Discovered new exit (range 15) 36669 | -3/Garrison | Discovered new exit (range 8) 36693 | -3/Garrison | Expanded RIF knowledge: Autoassimilate 36741 | -3/Garrison | Triggered checkpoint 36779 | -3/Garrison | Garrison Relay disabled 37062 | -3/Garrison | Triggered checkpoint 37497 | -3/Garrison | Triggered checkpoint 37668 | -3/Garrison | Discovered new exit (range 13) 38070 | -3/Garrison | Triggered checkpoint 38109 | -3/Garrison | Garrison Relay disabled 38247 | -3/Garrison | Triggered checkpoint 38349 | -3/Garrison | Garrison Relay disabled 38662 | -3/Garrison | Build established: Botlord-Tank 39371 | -3/Garrison | Entered Research 39371 | -2/Research | Accompanied by 23 allies 39371 | -2/Research | Evolved 2 slots: Utility x2 39390 | -2/Research | Found Prototype Launcher 39602 | -2/Research | Discovered new exit (range 32) 39637 | -2/Research | Garrison activated, responded to threat 39749 | -2/Research | Spotted B-90 Cyclops 39773 | -2/Research | Allies destroyed B-90 Cyclops 39875 | -2/Research | Identified exit to Garrison 39886 | -2/Research | Entered Garrison 39886 | -2/Garrison | Accompanied by 8 allies 39914 | -2/Garrison | Phase Generator disabled 40065 | -2/Garrison | Triggered checkpoint 40205 | -2/Garrison | Spotted B-90 Cyclops 40440 | -2/Garrison | Garrison Relay disabled 40639 | -2/Garrison | Build established: Botlord-Mutant 40882 | -2/Garrison | Triggered checkpoint 40885 | -2/Garrison | Triggered checkpoint 41366 | -2/Garrison | Destroyed B-90 Cyclops 41475 | -2/Garrison | Discovered new exit (range 13) 41652 | -2/Garrison | Build established: Botlord-Gunner 41783 | -2/Garrison | Triggered checkpoint 42066 | -2/Garrison | Build established: Botlord-Mutant 42120 | -2/Garrison | Triggered checkpoint 42423 | -2/Garrison | Discovered new exit (range 8) 42456 | -2/Garrison | Expanded RIF knowledge: Program Shield 42795 | -2/Garrison | Triggered checkpoint 43079 | -2/Garrison | Discovered new exit (range 9) 43107 | -2/Garrison | Triggered checkpoint 43426 | -2/Garrison | Garrison Relay disabled 43639 | -2/Garrison | Triggered checkpoint 44102 | -2/Garrison | Triggered checkpoint 44135 | -2/Garrison | Garrison Relay disabled 44306 | -2/Garrison | Garrison Relay disabled 44846 | -2/Garrison | Entered Access 44846 | -1/Access | Accompanied by 17 allies 44846 | -1/Access | Evolved 2 slots: Utility x2 44863 | -1/Access | Identified Enh. Gamma Bomb Array 45455 | -1/Access | Garrison activated, responded to threat 45499 | -1/Access | Identified exit to Garrison 45536 | -1/Access | Entered Garrison 45536 | -1/Garrison | Accompanied by 16 allies 45550 | -1/Garrison | Triggered checkpoint 45639 | -1/Garrison | Triggered checkpoint 46004 | -1/Garrison | Triggered checkpoint 46113 | -1/Garrison | Garrison Relay disabled 46469 | -1/Garrison | Spotted B-99 Colossus 46885 | -1/Garrison | Phase Generator disabled 47468 | -1/Garrison | Garrison Relay disabled 48876 | -1/Garrison | Triggered checkpoint 50905 | -1/Garrison | Allies destroyed B-99 Colossus 51191 | -1/Garrison | Build established: Botlord-Gunner 51192 | -1/Garrison | Discovered new exit (range 10) 51392 | -1/Garrison | Garrison Relay disabled 51400 | -1/Garrison | Triggered checkpoint 51646 | -1/Garrison | Triggered checkpoint 51668 | -1/Garrison | Build established: Botlord-Mutant 52184 | -1/Garrison | Discovered new exit (range 13) 52700 | -1/Garrison | Crushed by falling debris 53669 | -1/Garrison | Triggered checkpoint 53823 | -1/Garrison | Garrison Relay disabled 53860 | -1/Garrison | Discovered new exit (range 10) 53884 | -1/Garrison | Expanded RIF knowledge: Structural Interface 54240 | -1/Garrison | Triggered checkpoint 54711 | -1/Garrison | Triggered checkpoint 54971 | -1/Garrison | Garrison Relay disabled 57482 | -1/Garrison | Entered Access 57482 | -1/Access | Accompanied by 30 allies 57915 | -1/Access | Spotted B-99 Colossus 57928 | -1/Access | Allies destroyed B-99 Colossus 59265 | -1/Access | Build established: Botlord-Gunner 59780 | -1/Access | Spotted B-99 Colossus 59808 | -1/Access | Allies destroyed B-99 Colossus 59838 | -1/Access | Lost 5 parts (2n2u1w) 59905 | -1/Access | Spotted B-99 Colossus 59970 | -1/Access | Destroyed B-99 Colossus 60243 | -1/Access | Discovered new exit (range 4) 60249 | *** | Escaped! Last Messages --------------- 60087_ Acquired Prototype Energy Gun. 60087_ Identified Gamma Rifle. 60089_ U-05 Engineer builds a Wall. 60089_ Acquired 60 matter. 60091_ Acquired 83 matter. 60092_ K-01 Serf collects debris. 60122_ Dropped Railgun. 60123_ System corrupted: Energy discharge (-206). 60123_ K-01 Serf collects debris. 60123_ Acquired Quantum Rifle. 60127_ K-01 Serf collects debris. 60160_ Sealed Heavy Doors breached. 60162_ K-01 Serf collects debris. 60178_ System corrupted: Energy discharge (-55). 60204_ K-01 Serf collects debris. 60243_ System corrupted: Quantum Rifle targeting data glitched. 60243_ Main Access Shell breached. 60243_ EXIT=FOUND [Achievement: 40k Club] [Achievement: One Last FU] Map ----- +----------------------------------------------------+ | ##### #???????????????? # + " # | | ????# ! #???????????????? " # # """ # | | ????#= #?????????????????"""" # # """ ? | | ????# #######???????????"""" # #? " ? | | ????# %= #???????????""""" # #? ? | | ????# [ #????????? """" #% #?? # | | ????######## [#???????? " # [#?? # | | ???????????#%!#??????# +!/#???###### | | ???????????#*=#??????# #%%#????????? | | ############!=#??????#################=!#????????? | | #%!######################## !#????????? | | +!* % % %!*%*%=!%=%*]#????????? | | #!!% !!=%==!*| %= =#????????? | | # ####### %=%""##########????????? | | """"" # #?????# =%! ![""#?????????????????? | | ?""""" ! # #?????# ""#?????????????????? | | ??"""" # #?????# T#?????????????????? | | ??"""" #^^#?????# ""#?????????????????? | | ??"""" /^^#?????# ""#?????????????????? | | ??"""" #=%#?????# ""#?????????????????? | | #=*#?????""""""""""""?????????????????? | | #!!#?????# ?????????????????????????? | | ############ #?????# ?????????????????????????? | | ???????????# #?????# """"""????????????????????? | | ???????????# #?????# " "????????????????????? | | ?########??#]]#?????# " @" "????????????????????? | | ?# ?#]]#?????# "" "????????????????????? | | ?# !?#] #?????# " "????????????????????? | | ?? " # #?????# """""" #?????????????????? | | ?# """ # #?????# #?????????????????? | | ?# """ / #?????#""" """"""#?????????????????? | | ?# " ! # #????????" "???????????????????????? | | ?# # #????????" "???????????????????????? | | ## ! + #?????#""" """"""#?????????????????? | | ############+######?# #?????????????????? | | # #?# #?????????????????? | | # #?# ! #?????????????????? | | # !! #?# ! #?????????????????? | | !! # !!! #?# #?????????????????? | | ! # !! #?# #?????????????????? | | # #?# #?????????????????? | | # #?#### ####?????????????????? | | # #????# #????????????????????? | | # #????# #????????????????????? | | # * #????# #????????????????????? | | # !#????# *! ##########???????????? | | # [[!####?#[ ! # ! #???????????? | | #+################# *%=# #???????????? | | ###### *%!*== %*!!|# = #???????????? | | ???###+#### *[!=[ [* # #???????????? | +----------------------------------------------------+ Best States ------------- Heat Dissipation 52 Energy Generation 21 Energy Capacity 825 Matter Stores 388 Matter Capacity 550 Sight Range 20 Terrain Scan Density 10 Power Amplification 30 Armor Coverage 1200 Resistance: KI 20 Power Shielding 66 Phase Shifting 15 Evasion (%) 55 Targeting Accuracy 8 Target Analysis 8 Core Analysis 10 Recoil Reduction 4 Particle Charging 20 Offensive Hacking 10 Relay Coupler Types 197 Relay Coupler Value 7 Item Schematics ----------------- Hcp. Storage Unit | -8/Materials | Scanalyzed Remote Datajack | -7/Factory | Scanalyzed Arm. Medium Treads | -6/Factory | Hacked Robot Schematics ------------------ None Fabricated ------------ Remote Datajack | x1 | -6/Factory Alien Tech Used ----------------- None Achievements -------------- 40k Club Can't Touch This One Last FU Challenges ------------ None Game ------ Seed ThermalBombardmentLauncher Manual? 0 Play Time 05:00:38 Cumulative 79.7 hours Start 2021.05.15 @ 08:30:41 End 2021.05.16 @ 02:38:54 Sessions 7 Manual Loads 0 Difficulty Rogue Special Mode None Game No. 131 Rogue 119 Adventurer 4 Explorer 8 Win Type 0 Total 6 Types 5/0/0/1/0/0/0/0/0 Lore% 56 Gallery% 72 Achievement% 53 Wizard Run 0 Options --------- ASCII 0 Keyboard 1 Movement Numpad Keybinds 0 Fullscreen 1 Font 16/Terminus Map View 76x50 Tactical HUD 1 Map Filters NONE Filters NONE Steam 1 RUN: 46cc1afc-3ac5-4960-a032-c06e1d49ecec